fUSD/lending_fUSD_20240804
["ID","MTS","AMOUNT","RATE_DAILY","PERIOD"]
[334128978,1722789106659,-580.87,0.0002326,9]
[334128979,1722789106668,-151.0,0.0002326,7]
[334128980,1722789106677,-3092.5,0.0002326,9]
[334128981,1722789106687,-500.0,0.0002326,9]
[334128982,1722789106696,-1380.41,0.0002326,9]
[334128983,1722789106705,-500.0,0.0002326,9]
[334128984,1722789106714,-1525.48,0.0002326,9]
[334128985,1722789106723,-500.0,0.0002326,9]
[334128986,1722789106732,-500.0,0.0002326,9]
[334128987,1722789106742,-500.0,0.0002326,9]
[334128988,1722789106751,-500.0,0.0002326,9]
[334128989,1722789106760,-735.29,0.0002326,9]
[334128990,1722789106769,-500.0,0.0002326,9]
[334128991,1722789106779,-500.0,0.0002326,9]
[334128992,1722789106788,-151.0,0.0002326,7]
[334128993,1722789106797,-500.0,0.0002326,9]
[334128994,1722789106807,-1651.73,0.0002326,9]
[334128995,1722789106816,-500.0,0.0002326,9]
[334128996,1722789106825,-1424.91,0.0002326,9]
[334128997,1722789106834,-500.91097307,0.0002326,9]
[334128998,1722789106843,-264.28,0.0002326,9]
[334128999,1722789106852,-511.18,0.0002326,9]
[334129000,1722789106862,-500.0,0.0002326,9]
[334129001,1722789106870,-9291.65,0.0002326,9]
[334129002,1722789106879,-500.0,0.0002326,9]
[334129003,1722789106889,-500.87896452,0.0002326,9]
[334129004,1722789106898,-500.0,0.0002326,9]
[334129005,1722789106907,-500.0,0.0002326,9]
[334129006,1722789106916,-668.08,0.0002326,9]
[334129007,1722789106925,-1800.64,0.0002326,9]
[334129008,1722789106934,-1076.82,0.0002326,9]
[334129009,1722789106943,-499.19,0.0002326,9]
[334129010,1722789106952,-1604.95,0.0002326,9]
[334129011,1722789106962,-696.11,0.0002326,9]
[334129012,1722789106971,-840.83,0.0002326,9]
[334129013,1722789106981,-734.28,0.0002326,9]
[334129014,1722789106990,-500.0,0.0002326,9]
[334129015,1722789106999,-500.0,0.0002326,9]
[334129016,1722789107008,-500.0,0.0002326,9]
[334129017,1722789107018,-500.0,0.0002326,9]
[334129018,1722789107027,-500.0,0.0002326,9]
[334129019,1722789107036,-580.56,0.0002326,9]
[334129020,1722789107045,-500.0,0.0002326,9]
[334129021,1722789107054,-1654.23,0.0002326,9]
[334129022,1722789107063,-500.0,0.0002326,9]
[334129023,1722789107074,-728.39,0.0002326,9]
[334129024,1722789107083,-932.72,0.0002326,9]
[334129025,1722789107093,-500.0,0.0002326,9]
[334129026,1722789107103,-500.0,0.0002326,9]
[334129027,1722789107112,-716.95,0.0002326,9]
[334129028,1722789107121,-652.16,0.0002326,9]
[334129029,1722789107131,-509.23,0.0002326,9]
[334129030,1722789107140,-500.0,0.0002326,9]
[334129031,1722789107149,-500.0,0.0002326,9]
[334129032,1722789107159,-1421.84,0.0002326,9]
[334129033,1722789107170,-500.0,0.0002326,9]
[334129034,1722789107181,-1831.37,0.0002326,9]
[334129035,1722789107191,-500.0,0.0002326,9]
[334129036,1722789107200,-9159.33,0.0002326,9]
[334129037,1722789107211,-500.0,0.0002326,9]
[334129038,1722789107221,-500.0,0.0002326,9]
[334129039,1722789107231,-24340.79,0.0002326,9]
[334129040,1722789107240,-500.0,0.0002326,9]
[334129041,1722789107252,-500.0,0.0002326,9]
[334129042,1722789107261,-500.0,0.0002326,9]
[334129043,1722789107271,-500.0,0.0002326,9]
[334129044,1722789107281,-500.0,0.0002326,9]
[334129045,1722789107290,-500.0,0.0002326,9]
[334129046,1722789107299,-500.85506161,0.0002326,9]
[334129047,1722789107309,-500.0,0.0002326,9]
[334129048,1722789107319,-500.0,0.0002326,9]
[334129049,1722789107329,-500.0,0.0002326,9]
[334129050,1722789107338,-696.26,0.0002326,9]
[334129051,1722789107348,-500.0,0.0002326,9]
[334129052,1722789107357,-2392.07,0.0002326,9]
[334129053,1722789107366,-400.0,0.0002326,9]
[334129054,1722789107376,-6117.15,0.0002326,9]
[334129055,1722789107385,-500.0,0.0002326,9]
[334129056,1722789107394,-500.0,0.0002326,9]
[334129057,1722789107403,-500.0,0.0002326,9]
[334129058,1722789107413,-500.0,0.0002326,9]
[334129059,1722789107422,-1134.1,0.0002326,9]
[334129060,1722789107431,-871.99,0.0002326,9]
[334129061,1722789107441,-2627.33,0.0002326,9]
[334129062,1722789107451,-500.0,0.0002326,9]
[334129063,1722789107460,-771.73,0.0002326,9]
[334129064,1722789107470,-544.49,0.0002326,9]
[334129065,1722789107479,-500.0,0.0002326,9]
[334129066,1722789107488,-500.0,0.0002326,9]
[334129067,1722789107497,-6002.83,0.0002326,9]
[334129068,1722789107507,-500.0,0.0002326,9]
[334129069,1722789107516,-791.38,0.0002326,9]
[334129070,1722789107525,-500.0,0.0002326,9]
[334129071,1722789107534,-500.73430048,0.0002326,9]
[334129072,1722789107543,-11888.09,0.0002326,9]
[334129073,1722789107553,-500.0,0.0002326,9]
[334129074,1722789107562,-500.0,0.0002326,9]
[334129075,1722789107571,-500.0,0.0002326,9]
[334129076,1722789107581,-500.0,0.0002326,9]
[334129077,1722789107590,-500.0,0.0002326,9]
[334129078,1722789107600,-944.27,0.0002326,9]
[334129079,1722789107610,-1585.57,0.0002326,9]
[334129080,1722789107619,-4038.41,0.0002326,9]
[334129081,1722789107629,-608.31,0.0002326,9]
[334129082,1722789107639,-1194.13,0.0002326,9]
[334129083,1722789107648,-1646.59,0.0002326,9]
[334129084,1722789107657,-949.11,0.0002326,9]
[334129085,1722789107667,-500.0,0.0002326,9]
[334129086,1722789107676,-500.0,0.0002326,9]
[334129087,1722789107685,-2124.99,0.0002326,9]
[334129088,1722789107695,-1277.47,0.0002326,9]
[334129089,1722789107704,-500.0,0.0002326,9]
[334129090,1722789107714,-500.0,0.0002326,9]
[334129091,1722789107724,-2060.41,0.0002326,9]
[334129092,1722789107733,-5462.19,0.0002326,9]
[334129093,1722789107742,-1732.64,0.0002326,9]
[334129094,1722789107752,-500.0,0.0002326,9]
[334129095,1722789107762,-500.0,0.0002326,9]
[334129096,1722789107771,-500.0,0.0002326,9]
[334129097,1722789107781,-500.0,0.0002326,9]
[334129098,1722789107791,-500.0,0.0002326,9]
[334129099,1722789107800,-1091.18,0.0002326,9]
[334129100,1722789107809,-500.0,0.0002326,9]
[334129101,1722789107819,-544.49,0.0002326,9]
[334129102,1722789107828,-500.0,0.0002326,9]
[334129103,1722789107837,-500.0,0.0002326,9]
[334129104,1722789107846,-564.87,0.0002326,9]
[334129105,1722789107855,-15172.23,0.0002326,9]
[334129106,1722789107864,-4452.48,0.0002326,9]
[334129107,1722789107874,-500.0,0.0002326,9]
[334129108,1722789107883,-851.31,0.0002326,9]
[334129109,1722789107891,-500.0,0.0002326,9]
[334129110,1722789107900,-1441.44,0.0002326,9]
[334129111,1722789107909,-584.6,0.0002326,9]
[334129112,1722789107919,-2716.36,0.0002326,9]
[334129113,1722789107928,-500.0,0.0002326,9]
[334129114,1722789107937,-1571.23,0.0002326,9]
[334129115,1722789107947,-574.32,0.0002326,9]
[334129116,1722789107956,-500.0,0.0002326,9]
[334129117,1722789107966,-500.0,0.0002326,9]
[334129118,1722789107976,-1778.849832,0.0002326,7]
[334129119,1722789107985,-500.0,0.0002326,9]
[334129120,1722789107995,-1021.22,0.0002326,9]
[334129121,1722789108004,-703.47,0.0002326,9]
[334129122,1722789108013,-500.0,0.0002326,9]
[334129123,1722789108022,-1778.849832,0.0002326,7]
[334129124,1722789108031,-1535.24,0.0002326,9]
[334129125,1722789108041,-1291.6,0.0002326,9]
[334129126,1722789108051,-763.08,0.0002326,9]
[334129127,1722789108060,-5391.24,0.0002326,9]
[334129128,1722789108069,-1354.84,0.0002326,9]
[334129129,1722789108079,-584.33,0.0002326,9]
[334129130,1722789108088,-500.0,0.0002326,9]
[334129131,1722789108097,-709.22,0.0002326,9]
[334129132,1722789108107,-500.0,0.0002326,9]
[334129133,1722789108117,-2713.37,0.0002326,9]
[334129134,1722789108126,-500.0,0.0002326,9]
[334129135,1722789108135,-2249.61,0.0002326,9]
[334129136,1722789108146,-995.02,0.0002326,9]
[334129137,1722789108155,-253.193013,0.0002326,7]
[334129138,1722789108169,-3893.64,0.0002326,9]
[334129139,1722789108179,-500.0,0.0002326,9]
[334129140,1722789108188,-500.0,0.0002326,9]
[334129141,1722789108198,-500.0,0.0002326,9]
[334129142,1722789108210,-500.0,0.0002326,9]
[334129143,1722789108219,-605.15,0.0002326,9]
[334129144,1722789108421,-892.75,0.0002326,9]
[334129145,1722789108431,-1131.9,0.0002326,9]
[334129146,1722789108441,-2837.07,0.0002326,9]
[334129147,1722789108450,-500.0,0.0002326,9]
[334129148,1722789108460,-1059.61,0.0002326,9]
[334129149,1722789108470,-253.193013,0.0002326,7]
[334129150,1722789108480,-901.69,0.0002326,9]
[334129151,1722789108489,-500.0,0.0002326,9]
[334129152,1722789108499,-500.0,0.0002326,9]
[334129153,1722789108508,-873.69,0.0002326,9]
[334129154,1722789108518,-500.0,0.0002326,9]
[334129155,1722789108527,-500.0,0.0002326,9]
[334129156,1722789108536,-1120.25,0.0002326,9]
[334129157,1722789108547,-500.0,0.0002326,9]
[334129158,1722789108561,-500.0,0.0002326,9]
[334129159,1722789108571,-1475.32,0.0002326,9]
[334129160,1722789108580,-500.0,0.0002326,9]
[334129161,1722789108589,-6849.94,0.0002326,9]
[334129162,1722789108603,-1520.63,0.0002326,9]
[334129163,1722789108612,-2285.11,0.0002326,9]
[334129164,1722789108622,-645.98,0.0002326,9]
[334129165,1722789108633,-1055.9,0.0002326,9]
[334129166,1722789108645,-500.0,0.0002326,9]
[334129167,1722789108655,-500.0,0.0002326,9]
[334129168,1722789108665,-500.0,0.0002326,9]
[334129169,1722789108674,-500.0,0.0002326,9]
[334129170,1722789108683,-4923.42,0.0002326,9]
[334129171,1722789108693,-500.0,0.0002326,9]
[334129172,1722789108703,-500.0,0.0002326,9]
[334129173,1722789108713,-1211.89,0.0002326,9]
[334129174,1722789108723,-1860.21,0.0002326,9]
[334129175,1722789108734,-500.0,0.0002326,9]
[334129176,1722789108745,-500.0,0.0002326,9]
[334129177,1722789108755,-151.0,0.0002326,7]
[334129178,1722789108765,-2498.66,0.0002326,9]
[334129179,1722789108775,-500.0,0.0002326,9]
[334129180,1722789108786,-723.93,0.0002326,9]
[334129181,1722789108796,-2543.95,0.0002326,9]
[334129182,1722789108806,-500.0,0.0002326,9]
[334129183,1722789108816,-500.0,0.0002326,9]
[334129184,1722789108827,-781.57,0.0002326,9]
[334129185,1722789108837,-1321.62,0.0002326,9]
[334129186,1722789108847,-1395.06,0.0002326,9]
[334129187,1722789108857,-1624.5,0.0002326,9]
[334129188,1722789108867,-443.44,0.0002326,9]
[334129189,1722789108877,-500.0,0.0002326,9]
[334129190,1722789108886,-1415.76,0.0002326,9]
[334129191,1722789108896,-1413.44,0.0002326,9]
[334129192,1722789108907,-500.0,0.0002326,9]
[334129193,1722789108917,-1456.38,0.0002326,9]
[334129194,1722789108927,-500.0,0.0002326,9]
[334129195,1722789108937,-1000.0,0.0002326,9]
[334129196,1722789108947,-1356.63,0.0002326,9]
[334129197,1722789108956,-911.83,0.0002326,9]
[334129198,1722789108966,-500.0,0.0002326,9]
[334129199,1722789108976,-500.0,0.0002326,9]
[334129200,1722789108987,-900.99,0.0002326,9]
[334129201,1722789108997,-500.0,0.0002326,9]
[334129202,1722789109008,-500.0,0.0002326,9]
[334129203,1722789109018,-1747.36,0.0002326,9]
[334129204,1722789109028,-400.77,0.0002326,9]
[334129205,1722789109038,-2014.48,0.0002326,9]
[334129206,1722789109048,-2308.05,0.0002326,9]
[334129207,1722789109058,-500.0,0.0002326,9]
[334129208,1722789109068,-500.0,0.0002326,9]
[334129209,1722789109078,-500.0,0.0002326,9]
[334129210,1722789109088,-500.0,0.0002326,9]
[334129211,1722789109098,-2084.47,0.0002326,9]
[334129212,1722789109108,-500.0,0.0002326,9]
[334129213,1722789109118,-3204.33,0.0002326,9]
[334129214,1722789109127,-500.0,0.0002326,9]
[334129215,1722789109137,-500.0,0.0002326,9]
[334129216,1722789109147,-1114.5,0.0002326,9]
[334129217,1722789109157,-500.0,0.0002326,9]
[334129218,1722789109171,-782.31,0.0002326,9]
[334129219,1722789109181,-452.76,0.0002326,9]
[334129220,1722789109191,-1467.0,0.0002326,9]
[334129221,1722789109202,-243.58188661,0.0002326,9]
[334129222,1722789109211,-1170.79,0.0002326,9]
[334129223,1722789109221,-1027.92,0.0002326,9]
[334129224,1722789109231,-500.0,0.0002326,9]
[334129225,1722789109241,-500.0,0.0002326,9]
[334129226,1722789109253,-584.12,0.0002326,9]
[334129227,1722789109265,-1503.19,0.0002326,9]
[334129228,1722789109275,-500.0,0.0002326,9]
[334129229,1722789109286,-500.0,0.0002326,9]
[334129230,1722789109296,-500.0,0.0002326,9]
[334129231,1722789109306,-2370.59,0.0002326,9]
[334129232,1722789109316,-500.0,0.0002326,9]
[334129233,1722789109326,-8526.84,0.0002326,9]
[334129234,1722789109336,-2115.13,0.0002326,9]
[334129235,1722789109345,-500.73156535,0.0002326,2]
[334129236,1722789109355,-500.0,0.0002326,9]
[334129237,1722789109366,-931.26,0.0002326,9]
[334129238,1722789109376,-244.35453813,0.0002326,9]
[334129239,1722789109386,-500.0,0.0002326,9]
[334129240,1722789109401,-792.92,0.0002326,9]
[334129241,1722789109410,-500.0,0.0002326,9]
[334129242,1722789109420,-500.0,0.0002326,9]
[334129243,1722789109429,-500.0,0.0002326,9]
[334129244,1722789109439,-500.0,0.0002326,9]
[334129245,1722789109449,-500.0,0.0002326,9]
[334129246,1722789109459,-500.0,0.0002326,9]
[334129247,1722789109469,-500.0,0.0002326,9]
[334129248,1722789109479,-1614.2,0.0002326,9]
[334129249,1722789109489,-1212.39,0.0002326,9]
[334129250,1722789109499,-500.0,0.0002326,9]
[334129251,1722789109509,-2872.78,0.0002326,9]
[334129252,1722789109520,-500.0,0.0002326,9]
[334129253,1722789109530,-940.66,0.0002326,9]
[334129254,1722789109540,-720.05,0.0002326,9]
[334129255,1722789109550,-500.0,0.0002326,9]
[334129256,1722789109560,-2278.54,0.0002326,9]
[334129257,1722789109569,-500.0,0.0002326,9]
[334129258,1722789109579,-1140.48,0.0002326,9]
[334129259,1722789109589,-1064.77,0.0002326,9]
[334129260,1722789109600,-500.0,0.0002326,9]
[334129261,1722789109610,-502.33422549,0.0002326,9]
[334129262,1722789109620,-500.0,0.0002326,9]
[334129263,1722789109630,-640.10317953,0.0002326,9]
[334129264,1722789109639,-500.0,0.0002326,9]
[334129265,1722789109649,-2298.73,0.0002326,9]
[334129266,1722789109660,-500.0,0.0002326,9]
[334129267,1722789109669,-664.1,0.0002326,9]
[334129268,1722789109679,-952.32,0.0002326,9]
[334129269,1722789109689,-500.0,0.0002326,9]
[334129270,1722789109699,-1168.02,0.0002326,9]
[334129271,1722789109709,-1420.45,0.0002326,9]
[334129272,1722789109719,-500.0,0.0002326,9]
[334129273,1722789109728,-735.18,0.0002326,9]
[334129274,1722789109738,-500.0,0.0002326,9]
[334129275,1722789109747,-500.0,0.0002326,9]
[334129276,1722789109757,-500.0,0.0002326,9]
[334129277,1722789109767,-529.10072068,0.0002326,9]
[334129278,1722789109776,-500.0,0.0002326,9]
[334129279,1722789109786,-1120.04,0.0002334,9]
[334129280,1722789109797,-500.0,0.0002334,9]
[334129281,1722789109807,-956.89,0.00023341,9]
[334129282,1722789109816,-956.89,0.00023341,9]
[334129283,1722789109826,-1120.04,0.00023341,9]
[334129284,1722789109835,-1120.04,0.00023341,9]
[334129285,1722789109844,-500.0,0.00023341,9]
[334129286,1722789109853,-500.0,0.00023341,9]
[334129287,1722789109863,-2337.51,0.00023342,2]
[334129288,1722789109873,-500.0,0.00023342,9]
[334129289,1722789109883,-500.0,0.00023342,9]
[334129290,1722789109892,-500.0,0.00023342,9]
[334129291,1722789109902,-500.0,0.00023342,9]
[334129292,1722789109911,-515.09594631,0.00023342,9]
[334129293,1722789109921,-500.0,0.00023342,9]
[334129294,1722789109930,-500.0,0.00023342,9]
[334129295,1722789109940,-500.0,0.00023342,9]
[334129296,1722789109950,-500.0,0.00023342,9]
[334129297,1722789109959,-500.0,0.00023342,9]
[334129298,1722789109968,-500.0,0.00023342,9]
[334129299,1722789109978,-473.97,0.00023342,9]
[334129300,1722789109987,-500.0,0.00023342,9]
[334129301,1722789109997,-427.28,0.00023342,9]
[334129302,1722789110006,-352.5,0.00023342,9]
[334129303,1722789110016,-500.0,0.00023342,9]
[334129304,1722789110026,-500.0,0.00023342,9]
[334129305,1722789110035,-500.0,0.00023342,9]
[334129306,1722789110044,-500.0,0.00023342,9]
[334129307,1722789110054,-500.0,0.00023342,9]
[334129308,1722789110064,-500.0,0.00023342,9]
[334129309,1722789110073,-500.0,0.00023342,9]
[334129310,1722789110082,-500.0,0.00023342,9]
[334129311,1722789110092,-615.07122737,0.00023342,9]
[334129312,1722789110101,-500.0,0.00023342,9]
[334129313,1722789110111,-500.0,0.00023342,9]
[334129314,1722789110120,-500.0,0.00023342,9]
[334129315,1722789110130,-500.0,0.00023342,9]
[334129316,1722789110140,-500.0,0.00023342,9]
[334129317,1722789110149,-500.0,0.00023342,9]
[334129318,1722789110159,-500.0,0.00023342,9]
[334129319,1722789110169,-500.0,0.00023342,9]
[334129320,1722789110181,-500.0,0.00023342,9]
[334129321,1722789110191,-500.0,0.00023342,9]
[334129322,1722789110199,-500.0,0.00023342,9]
[334129323,1722789110208,-500.0,0.00023342,9]
[334129324,1722789110219,-500.0,0.00023342,9]
[334129325,1722789110229,-500.0,0.00023342,9]
[334129326,1722789110238,-500.0,0.00023342,9]
[334129327,1722789110249,-500.0,0.00023342,9]
[334129328,1722789110258,-500.0,0.00023342,9]
[334129329,1722789110268,-502.62,0.00023342,9]
[334129330,1722789110278,-500.0,0.00023342,9]
[334129331,1722789110287,-500.0,0.00023342,9]
[334129332,1722789110297,-447.91,0.00023342,9]
[334129333,1722789110306,-500.0,0.00023342,9]
[334129334,1722789110316,-500.0,0.00023342,9]
[334129335,1722789110325,-500.0,0.00023342,9]
[334129336,1722789110335,-184.84,0.00023342,9]
[334129337,1722789110344,-227.69,0.00023342,9]
[334129338,1722789110354,-460.63,0.00023342,9]
[334129339,1722789110363,-730.08,0.00023342,9]
[334129340,1722789110372,-500.0,0.00023342,9]
[334129341,1722789110382,-575.52,0.00023342,9]
[334129342,1722789110392,-500.0,0.00023342,9]
[334129343,1722789110401,-500.0,0.00023342,9]
[334129344,1722789110411,-500.0,0.00023342,9]
[334129345,1722789110420,-500.0,0.00023342,9]
[334129346,1722789110430,-588.86,0.00023342,9]
[334129347,1722789110439,-500.0,0.00023342,9]
[334129348,1722789110448,-500.0,0.00023342,9]
[334129349,1722789110458,-500.0,0.00023342,9]
[334129350,1722789110467,-500.0,0.00023342,9]
[334129351,1722789110476,-850.72,0.00023342,9]
[334129352,1722789110485,-647.26419347,0.00023342,9]
[334129353,1722789110494,-500.0,0.00023342,9]
[334129354,1722789110504,-760.21,0.00023342,9]
[334129355,1722789110513,-626.04,0.00023342,9]
[334129356,1722789110523,-500.0,0.00023342,9]
[334129357,1722789110532,-500.0,0.00023342,9]
[334129358,1722789110541,-500.0,0.00023342,9]
[334129359,1722789110550,-500.0,0.00023342,9]
[334129360,1722789110559,-500.0,0.00023342,9]
[334129361,1722789110568,-500.0,0.00023342,9]
[334129362,1722789110577,-500.0,0.00023342,9]
[334129363,1722789110587,-501.74428904,0.00023342,9]
[334129364,1722789110597,-561.46,0.00023342,9]
[334129365,1722789110606,-500.0,0.00023342,9]
[334129366,1722789110616,-500.0,0.00023342,9]
[334129367,1722789110625,-500.0,0.00023342,9]
[334129368,1722789110635,-500.0,0.00023342,9]
[334129369,1722789110645,-500.0,0.00023342,9]
[334129370,1722789110654,-500.0,0.00023342,9]
[334129371,1722789110663,-500.0,0.00023342,9]
[334129372,1722789110673,-550.62,0.00023342,9]
[334129373,1722789110683,-500.0,0.00023342,9]
[334129374,1722789110692,-502.33786528,0.00023342,9]
[334129375,1722789110702,-500.0,0.00023342,9]
[334129376,1722789110711,-500.0,0.00023342,9]
[334129377,1722789110721,-500.0,0.00023342,9]
[334129378,1722789110730,-500.0,0.00023342,9]
[334129379,1722789110739,-500.0,0.00023342,9]
[334129380,1722789110749,-500.0,0.00023342,9]
[334129381,1722789110758,-500.0,0.00023342,9]
[334129382,1722789110767,-500.0,0.00023342,9]
[334129383,1722789110777,-500.0,0.00023342,9]
[334129384,1722789110787,-500.0,0.00023342,9]
[334129385,1722789110796,-501.89163129,0.00023342,9]
[334129386,1722789110805,-500.0,0.00023342,9]
[334129387,1722789110814,-274.02881294,0.00023342,9]
[334129388,1722789110823,-500.0,0.00023342,9]
[334129389,1722789110832,-500.0,0.00023342,9]
[334129390,1722789110842,-591.33,0.00023342,9]
[334129391,1722789110851,-1011.69,0.00023342,9]
[334129392,1722789110860,-500.0,0.00023342,9]
[334129393,1722789110870,-511.64,0.00023342,9]
[334129394,1722789110879,-500.0,0.00023342,9]
[334129395,1722789110889,-404.80470169,0.00023342,9]
[334129396,1722789110898,-500.0,0.00023342,9]
[334129397,1722789110908,-500.0,0.00023342,9]
[334129398,1722789110917,-559.06,0.00023342,9]
[334129399,1722789110926,-702.5,0.00023342,9]
[334129400,1722789110935,-500.0,0.00023342,9]
[334129401,1722789110944,-500.0,0.00023342,9]
[334129402,1722789110953,-500.0,0.00023342,9]
[334129403,1722789110963,-500.0,0.00023342,9]
[334129404,1722789110972,-500.0,0.00023342,9]
[334129405,1722789110980,-366.13785784,0.00023342,9]
[334129406,1722789110990,-646.51,0.00023342,9]
[334129407,1722789110999,-500.0,0.00023342,9]
[334129408,1722789111009,-1314.76,0.00023342,9]
[334129409,1722789111018,-500.0,0.00023342,9]
[334129410,1722789111027,-500.0,0.00023342,9]
[334129411,1722789111037,-500.0,0.00023342,9]
[334129412,1722789111046,-500.0,0.00023342,9]
[334129413,1722789111055,-500.0,0.00023342,9]
[334129414,1722789111065,-532.71,0.00023342,9]
[334129415,1722789111075,-500.0,0.00023342,9]
[334129416,1722789111084,-721.27,0.00023342,9]
[334129417,1722789111094,-500.0,0.00023342,9]
[334129418,1722789111104,-500.0,0.00023342,9]
[334129419,1722789111113,-500.0,0.00023342,9]
[334129420,1722789111123,-500.0,0.00023342,9]
[334129421,1722789111132,-500.0,0.00023342,9]
[334129422,1722789111141,-500.0,0.00023342,9]
[334129423,1722789111151,-500.0,0.00023342,9]
[334129424,1722789111160,-500.0,0.00023342,9]
[334129425,1722789111171,-540.98,0.00023342,9]
[334129426,1722789111181,-500.0,0.00023342,9]
[334129427,1722789111190,-500.0,0.00023342,9]
[334129428,1722789111200,-500.0,0.00023342,9]
[334129429,1722789111211,-500.0,0.00023342,9]
[334129430,1722789111220,-500.0,0.00023342,9]
[334129431,1722789111230,-647.7489751,0.00023342,9]
[334129432,1722789111239,-521.65,0.00023342,9]
[334129433,1722789111250,-785.3,0.00023342,9]
[334129434,1722789111259,-831.69,0.00023342,9]
[334129435,1722789111268,-500.0,0.00023342,9]
[334129436,1722789111277,-159.277019,0.00023342,7]
[334129437,1722789111286,-780.18,0.00023342,9]
[334129438,1722789111296,-500.0,0.00023342,9]
[334129439,1722789111305,-500.0,0.00023342,9]
[334129440,1722789111315,-500.0,0.00023342,9]
[334129441,1722789111324,-500.0,0.00023342,9]
[334129442,1722789111334,-500.0,0.00023342,9]
[334129443,1722789111345,-500.0,0.00023342,9]
[334129444,1722789111354,-500.0,0.00023342,9]
[334129445,1722789111364,-500.0,0.00023342,9]
[334129446,1722789111373,-500.0,0.00023342,9]
[334129447,1722789111383,-559.95,0.00023342,9]
[334129448,1722789111392,-501.55717133,0.00023342,9]
[334129449,1722789111401,-500.89771542,0.00023342,9]
[334129450,1722789111411,-500.0,0.00023342,9]
[334129451,1722789111420,-1164.15,0.00023342,9]
[334129452,1722789111430,-500.0,0.00023342,9]
[334129453,1722789111439,-995.62,0.00023342,9]
[334129454,1722789111448,-500.0,0.00023342,9]
[334129455,1722789111457,-500.0,0.00023342,9]
[334129456,1722789111466,-500.0,0.00023342,9]
[334129457,1722789111476,-500.0,0.00023342,9]
[334129458,1722789111485,-576.22,0.00023342,9]
[334129459,1722789111495,-500.0,0.00023342,9]
[334129460,1722789111505,-500.0,0.00023342,9]
[334129461,1722789111515,-543.19,0.00023342,9]
[334129462,1722789111524,-500.0,0.00023342,9]
[334129463,1722789111534,-500.0,0.00023342,9]
[334129464,1722789111543,-500.0,0.00023342,9]
[334129465,1722789111553,-208.27268132,0.00023342,9]
[334129466,1722789111562,-500.0,0.00023342,9]
[334129467,1722789111572,-500.0,0.00023342,9]
[334129468,1722789111582,-500.0,0.00023342,9]
[334129469,1722789111591,-500.0,0.00023342,9]
[334129470,1722789111602,-500.0,0.00023342,9]
[334129471,1722789111611,-500.0,0.00023342,9]
[334129472,1722789111621,-500.0,0.00023342,9]
[334129473,1722789111631,-500.0,0.00023342,9]
[334129474,1722789111640,-599.57,0.00023342,2]
[334129475,1722789111649,-500.0,0.00023342,9]
[334129476,1722789111659,-500.0,0.00023342,9]
[334129477,1722789111669,-500.0,0.00023342,9]